[Event "*** SCC Grand Prix: Titled Tuesday Blitz"]
[Site "Chess.com"]
[Date "2020.07.07"]
[Round "7"]
[White "Chessmasterzt"]
[Black "Forantes"]
[Result "0-1"]
[WhiteElo "2598"]
[BlackElo "2375"]
[TimeControl "180+1"]
[EndTime "11:20:17 PDT"]
[Termination "Forantes won on time"]

1. d4 {[%clk 0:03:00.9]} 1... Nf6 {[%clk 0:02:59.5]} 2. Nf3 {[%clk 0:03:01.2]}
2... g6 {[%clk 0:02:59.7]} 3. c4 {[%clk 0:03:01.4]} 3... Bg7 {[%clk 0:03:00.1]}
4. Nc3 {[%clk 0:03:02.3]} 4... d5 {[%clk 0:03:00.4]} 5. cxd5 {[%clk 0:02:59.5]}
5... Nxd5 {[%clk 0:03:00.7]} 6. Qb3 {[%clk 0:03:00.3]} 6... Nxc3 {[%clk
0:02:58.2]} 7. bxc3 {[%clk 0:03:01.2]} 7... O-O {[%clk 0:02:58]} 8. e3 {[%clk
0:02:59.2]} 8... c5 {[%clk 0:02:58.3]} 9. Be2 {[%clk 0:02:56.2]} 9... Nc6 {[%clk
0:02:58.3]} 10. O-O {[%clk 0:02:55.9]} 10... Qc7 {[%clk 0:02:17.8]} 11. Ba3
{[%clk 0:02:18.5]} 11... Be6 {[%clk 0:02:04.1]} 12. Qb5 {[%clk 0:01:58.9]} 12...
cxd4 {[%clk 0:01:55.6]} 13. cxd4 {[%clk 0:01:59.8]} 13... Rfd8 {[%clk
0:01:52.1]} 14. Rfc1 {[%clk 0:01:53.9]} 14... Bd5 {[%clk 0:01:41.7]} 15. Rab1
{[%clk 0:01:43]} 15... Rac8 {[%clk 0:01:09.7]} 16. Bc4 {[%clk 0:01:34.5]} 16...
Nxd4 {[%clk 0:00:23]} 17. exd4 {[%clk 0:01:06.8]} 17... Bxc4 {[%clk 0:00:21.6]}
18. Qg5 {[%clk 0:01:04.3]} 18... e6 {[%clk 0:00:14.9]} 19. Be7 {[%clk
0:00:41.7]} 19... Rd5 {[%clk 0:00:14.7]} 20. Qh4 {[%clk 0:00:32.3]} 20... b5
{[%clk 0:00:14.8]} 21. Bc5 {[%clk 0:00:17]} 21... a6 {[%clk 0:00:11.1]} 22. Re1
{[%clk 0:00:15.6]} 22... Qd8 {[%clk 0:00:09.3]} 23. Qe4 {[%clk 0:00:14.4]} 23...
Rcxc5 {[%clk 0:00:06.8]} 24. dxc5 {[%clk 0:00:14.3]} 24... Bd3 {[%clk
0:00:07.4]} 25. Qb4 {[%clk 0:00:12.4]} 25... Bxb1 {[%clk 0:00:07.8]} 26. Rxb1
{[%clk 0:00:11.4]} 26... Rd1+ {[%clk 0:00:08.3]} 27. Ne1 {[%clk 0:00:05.8]}
27... Bf8 {[%clk 0:00:07.4]} 28. Kf1 {[%clk 0:00:03.6]} 28... Rxb1 {[%clk
0:00:04.1]} 29. Qxb1 {[%clk 0:00:04.5]} 29... Bxc5 {[%clk 0:00:04.7]} 30. Nd3
{[%clk 0:00:03.9]} 30... Bb6 {[%clk 0:00:05.2]} 31. Qc2 {[%clk 0:00:04.4]} 31...
Qc7 {[%clk 0:00:05]} 32. Qd2 {[%clk 0:00:03.9]} 32... Ba5 {[%clk 0:00:05.2]} 33.
Qd1 {[%clk 0:00:02.3]} 33... Qc4 {[%clk 0:00:05.4]} 34. g3 {[%clk 0:00:02.6]}
34... Qxa2 {[%clk 0:00:05.3]} 35. Kg2 {[%clk 0:00:02.7]} 35... Qd5+ {[%clk
0:00:05.8]} 36. Kf1 {[%clk 0:00:02.3]} 36... Qh1+ {[%clk 0:00:05.3]} 37. Ke2
{[%clk 0:00:02.7]} 37... Qxd1+ {[%clk 0:00:05.8]} 38. Kxd1 {[%clk 0:00:03.6]}
38... Bb6 {[%clk 0:00:06.3]} 39. f4 {[%clk 0:00:03]} 39... a5 {[%clk 0:00:06.5]}
40. Kc2 {[%clk 0:00:02.8]} 40... Bd4 {[%clk 0:00:06.1]} 41. h3 {[%clk
0:00:03.2]} 41... b4 {[%clk 0:00:06]} 42. Nc1 {[%clk 0:00:03.6]} 42... a4 {[%clk
0:00:06.1]} 43. Ne2 {[%clk 0:00:04]} 43... Bc5 {[%clk 0:00:05.2]} 44. Kd3 {[%clk
0:00:04.4]} 44... Kf8 {[%clk 0:00:03.9]} 45. Kc4 {[%clk 0:00:04.3]} 45... Bd6
{[%clk 0:00:03.8]} 46. Nd4 {[%clk 0:00:03.8]} 46... Ke7 {[%clk 0:00:04.4]} 47.
Nc6+ {[%clk 0:00:03.7]} 47... Kd7 {[%clk 0:00:05]} 48. Nd4 {[%clk 0:00:02.7]}
48... b3 {[%clk 0:00:05.2]} 49. Nf3 {[%clk 0:00:01.3]} 49... f5 {[%clk
0:00:04.9]} 0-1

[Event "*** SCC Grand Prix: Titled Tuesday Blitz"]
[Site "Chess.com"]
[Date "2020.07.07"]
[Round "7"]
[White "FMalexhdez"]
[Black "Konek-Gorbunok"]
[Result "0-1"]
[WhiteElo "2123"]
[BlackElo "2277"]
[TimeControl "180+1"]
[EndTime "11:20:18 PDT"]
[Termination "Konek-Gorbunok won by resignation"]

1. e4 {[%clk 0:03:00.9]} 1... c5 {[%clk 0:03:00]} 2. Nf3 {[%clk 0:03:00.1]} 2...
a6 {[%clk 0:02:59.6]} 3. d4 {[%clk 0:03:00.1]} 3... cxd4 {[%clk 0:03:00.1]} 4.
Nxd4 {[%clk 0:03:00.7]} 4... Nf6 {[%clk 0:03:00.3]} 5. Nc3 {[%clk 0:03:00.5]}
5... e5 {[%clk 0:03:01.2]} 6. Nde2 {[%clk 0:02:57.7]} 6... Bc5 {[%clk
0:03:00.8]} 7. h3 {[%clk 0:02:56.8]} 7... Qb6 {[%clk 0:02:59.4]} 8. Be3 {[%clk
0:02:52.4]} 8... Bxe3 {[%clk 0:02:59.2]} 9. fxe3 {[%clk 0:02:52.9]} 9... Qxe3
{[%clk 0:02:51.2]} 10. Qd3 {[%clk 0:02:36]} 10... Qxd3 {[%clk 0:02:45.9]} 11.
cxd3 {[%clk 0:02:35]} 11... Nc6 {[%clk 0:02:46]} 12. O-O-O {[%clk 0:02:33.9]}
12... d6 {[%clk 0:02:38.7]} 13. g4 {[%clk 0:02:25.3]} 13... h6 {[%clk
0:02:34.9]} 14. Bg2 {[%clk 0:02:23.3]} 14... Be6 {[%clk 0:02:33.3]} 15. d4
{[%clk 0:02:23.2]} 15... exd4 {[%clk 0:02:32.6]} 16. Nxd4 {[%clk 0:02:23.1]}
16... Nxd4 {[%clk 0:02:23.8]} 17. Rxd4 {[%clk 0:02:23.1]} 17... Ke7 {[%clk
0:02:14.7]} 18. Rhd1 {[%clk 0:02:20]} 18... Rhd8 {[%clk 0:02:12.9]} 19. Nd5+
{[%clk 0:02:14]} 19... Bxd5 {[%clk 0:02:08.9]} 20. exd5 {[%clk 0:02:12.6]} 20...
Kf8 {[%clk 0:02:07.8]} 21. Kd2 {[%clk 0:02:09.2]} 21... Rac8 {[%clk 0:02:06]}
22. h4 {[%clk 0:02:01.5]} 22... Re8 {[%clk 0:01:50.8]} 23. g5 {[%clk 0:02:00.5]}
23... hxg5 {[%clk 0:01:33.3]} 24. hxg5 {[%clk 0:02:00.3]} 24... Nd7 {[%clk
0:01:32.9]} 25. Bh3 {[%clk 0:01:43.2]} 25... Rc7 {[%clk 0:01:29.5]} 26. Bxd7
{[%clk 0:01:40]} 26... Rxd7 {[%clk 0:01:28.8]} 27. Rh1 {[%clk 0:01:33.8]} 27...
Re5 {[%clk 0:01:28.3]} 28. Rh8+ {[%clk 0:01:31.6]} 28... Ke7 {[%clk 0:01:27.9]}
29. g6 {[%clk 0:01:28.1]} 29... f5 {[%clk 0:01:23]} 30. Kd3 {[%clk 0:01:01.2]}
30... Kf6 {[%clk 0:01:21.8]} 31. Rdh4 {[%clk 0:00:43.3]} 31... Rxd5+ {[%clk
0:01:16.3]} 32. Kc4 {[%clk 0:00:43]} 32... Rc5+ {[%clk 0:01:14.8]} 33. Kd4
{[%clk 0:00:43.1]} 33... Kxg6 {[%clk 0:01:14.6]} 34. Rh1 {[%clk 0:00:37.9]}
34... Kf6 {[%clk 0:01:09.5]} 35. Rg1 {[%clk 0:00:33.9]} 35... Re7 {[%clk
0:01:01.2]} 36. Rf8+ {[%clk 0:00:33.4]} 36... Rf7 {[%clk 0:01:01.1]} 37. Rd8
{[%clk 0:00:32.1]} 37... Rc6 {[%clk 0:01:00.5]} 38. b4 {[%clk 0:00:30.4]} 38...
g5 {[%clk 0:00:58.9]} 39. a4 {[%clk 0:00:30.4]} 39... f4 {[%clk 0:00:55.6]} 40.
b5 {[%clk 0:00:30.6]} 40... axb5 {[%clk 0:00:55.3]} 41. axb5 {[%clk 0:00:30.8]}
41... Rb6 {[%clk 0:00:55]} 42. Kc4 {[%clk 0:00:29.8]} 42... Rg7 {[%clk
0:00:50.6]} 43. Rf8+ {[%clk 0:00:23.7]} 43... Ke7 {[%clk 0:00:50.4]} 44. Rxf4
{[%clk 0:00:23.7]} 44... d5+ {[%clk 0:00:38.5]} 45. Kc5 {[%clk 0:00:20.3]} 45...
Rd6 {[%clk 0:00:33.4]} 46. Rf5 {[%clk 0:00:17.8]} 46... b6+ {[%clk 0:00:31.9]}
47. Kd4 {[%clk 0:00:16.7]} 47... g4 {[%clk 0:00:29.2]} 48. Rxd5 {[%clk 0:00:15]}
48... Rxd5+ {[%clk 0:00:25.8]} 49. Kxd5 {[%clk 0:00:15]} 49... Rg6 {[%clk
0:00:25.9]} 50. Rg3 {[%clk 0:00:14.7]} 50... Kf6 {[%clk 0:00:24.6]} 51. Ke4
{[%clk 0:00:11.9]} 51... Ke6 {[%clk 0:00:24.6]} 52. Kf4 {[%clk 0:00:11.2]} 52...
Kd5 {[%clk 0:00:21.8]} 53. Rb3 {[%clk 0:00:10.6]} 53... Kc4 {[%clk 0:00:20.7]}
54. Rb1 {[%clk 0:00:10.3]} 54... g3 {[%clk 0:00:20.7]} 55. Kf3 {[%clk
0:00:10.4]} 55... g2 {[%clk 0:00:20.6]} 56. Kf2 {[%clk 0:00:10.8]} 56... g1=Q+
{[%clk 0:00:20.4]} 57. Rxg1 {[%clk 0:00:10.5]} 57... Rxg1 {[%clk 0:00:21.3]} 58.
Kxg1 {[%clk 0:00:10.9]} 58... Kxb5 {[%clk 0:00:22.2]} 59. Kf1 {[%clk 0:00:11.6]}
59... Kc4 {[%clk 0:00:22.5]} 60. Ke1 {[%clk 0:00:12.2]} 60... Kc3 {[%clk
0:00:21.7]} 61. Kd1 {[%clk 0:00:12.1]} 61... Kb2 {[%clk 0:00:21.8]} 0-1

[Event "*** SCC Grand Prix: Titled Tuesday Blitz"]
[Site "Chess.com"]
[Date "2020.07.07"]
[Round "7"]
[White "Kezin_Roman"]
[Black "IwkooO"]
[Result "0-1"]
[WhiteElo "2726"]
[BlackElo "2592"]
[TimeControl "180+1"]
[EndTime "11:20:20 PDT"]
[Termination "IwkooO won on time"]

1. Nc3 {[%clk 0:03:00.9]} 1... c5 {[%clk 0:02:58.2]} 2. Nf3 {[%clk 0:02:59.1]}
2... Nc6 {[%clk 0:02:55.3]} 3. d4 {[%clk 0:02:59.1]} 3... cxd4 {[%clk
0:02:55.4]} 4. Nxd4 {[%clk 0:03:00]} 4... g6 {[%clk 0:02:56]} 5. e4 {[%clk
0:02:57.6]} 5... Bg7 {[%clk 0:02:56.4]} 6. Be3 {[%clk 0:02:58.1]} 6... Nf6
{[%clk 0:02:56.4]} 7. Bc4 {[%clk 0:02:56.2]} 7... O-O {[%clk 0:02:56.6]} 8. Bb3
{[%clk 0:02:56.6]} 8... Re8 {[%clk 0:02:55.1]} 9. O-O {[%clk 0:02:48.4]} 9... d6
{[%clk 0:02:54.1]} 10. h3 {[%clk 0:02:47.6]} 10... Na5 {[%clk 0:02:54.3]} 11.
Qd2 {[%clk 0:02:42]} 11... b6 {[%clk 0:02:54.4]} 12. Bh6 {[%clk 0:02:34.7]}
12... Bh8 {[%clk 0:02:53.7]} 13. Rfe1 {[%clk 0:02:30.7]} 13... Bb7 {[%clk
0:02:52.5]} 14. Rad1 {[%clk 0:02:23.7]} 14... Nxb3 {[%clk 0:02:42.3]} 15. axb3
{[%clk 0:02:24.6]} 15... a6 {[%clk 0:02:38.9]} 16. Nf5 {[%clk 0:02:12.4]} 16...
Qc7 {[%clk 0:02:28]} 17. Qg5 {[%clk 0:02:01.4]} 17... b5 {[%clk 0:02:11.9]} 18.
Nd5 {[%clk 0:01:59]} 18... Nxd5 {[%clk 0:02:09.3]} 19. exd5 {[%clk 0:01:59.9]}
19... Bf6 {[%clk 0:02:09.5]} 20. Qg3 {[%clk 0:01:44]} 20... Qxc2 {[%clk
0:02:07.5]} 21. Ne3 {[%clk 0:01:35.8]} 21... Qxb3 {[%clk 0:02:00.9]} 22. Rd2
{[%clk 0:01:35.4]} 22... a5 {[%clk 0:01:58.1]} 23. Rde2 {[%clk 0:01:32.8]} 23...
Rec8 {[%clk 0:01:37.5]} 24. Ng4 {[%clk 0:01:13.2]} 24... Qxg3 {[%clk 0:01:37.1]}
25. fxg3 {[%clk 0:01:14.1]} 25... Bxd5 {[%clk 0:01:34.7]} 26. Rxe7 {[%clk
0:01:12.2]} 26... Bxe7 {[%clk 0:01:28.7]} 27. Rxe7 {[%clk 0:01:13.1]} 27... Be6
{[%clk 0:01:25.7]} 28. Nf6+ {[%clk 0:01:13.1]} 28... Kh8 {[%clk 0:01:25.9]} 29.
Bf4 {[%clk 0:00:44.1]} 29... Kg7 {[%clk 0:01:22.3]} 30. Ne4 {[%clk 0:00:44.5]}
30... Ra6 {[%clk 0:01:07.1]} 31. Bxd6 {[%clk 0:00:41.2]} 31... Rxd6 {[%clk
0:01:03.4]} 32. Nxd6 {[%clk 0:00:42.1]} 32... Rc1+ {[%clk 0:01:03.8]} 33. Kh2
{[%clk 0:00:41]} 33... b4 {[%clk 0:01:01]} 34. Ra7 {[%clk 0:00:39.8]} 34... Rc2
{[%clk 0:01:00.8]} 35. Ne8+ {[%clk 0:00:33.8]} 35... Kf8 {[%clk 0:00:59.4]} 36.
Nf6 {[%clk 0:00:33.3]} 36... Rxb2 {[%clk 0:00:59.5]} 37. Rxa5 {[%clk 0:00:32.1]}
37... Kg7 {[%clk 0:00:58.7]} 38. Ne8+ {[%clk 0:00:31.3]} 38... Kf8 {[%clk
0:00:54.5]} 39. Nd6 {[%clk 0:00:31.1]} 39... b3 {[%clk 0:00:52.1]} 40. Rb5
{[%clk 0:00:30.7]} 40... Rb1 {[%clk 0:00:46.6]} 41. Ne4 {[%clk 0:00:25.9]} 41...
Rd1 {[%clk 0:00:26.3]} 42. Nc5 {[%clk 0:00:23.7]} 42... Bc4 {[%clk 0:00:23.6]}
43. Rb4 {[%clk 0:00:17.6]} 43... Bd5 {[%clk 0:00:17.3]} 44. g4 {[%clk 0:00:07]}
44... Rd2 {[%clk 0:00:16.5]} 45. Kg3 {[%clk 0:00:07]} 45... Rxg2+ {[%clk
0:00:16.6]} 46. Kf4 {[%clk 0:00:07.4]} 46... b2 {[%clk 0:00:16.8]} 47. Na4
{[%clk 0:00:07.6]} 47... Rf2+ {[%clk 0:00:12.7]} 48. Kg5 {[%clk 0:00:06.6]}
48... Kg7 {[%clk 0:00:10.7]} 49. Nxb2 {[%clk 0:00:05.8]} 49... Rf3 {[%clk
0:00:10.5]} 50. Kh4 {[%clk 0:00:03.8]} 50... h6 {[%clk 0:00:11]} 51. g5 {[%clk
0:00:02]} 51... hxg5+ {[%clk 0:00:10.6]} 52. Kxg5 {[%clk 0:00:02.9]} 52... Be6
{[%clk 0:00:10.9]} 53. Kh4 {[%clk 0:00:02.2]} 53... f6 {[%clk 0:00:10]} 54. Rb7+
{[%clk 0:00:01.4]} 54... Kh6 {[%clk 0:00:10.4]} 0-1

[Event "*** SCC Grand Prix: Titled Tuesday Blitz"]
[Site "Chess.com"]
[Date "2020.07.07"]
[Round "7"]
[White "BeanScreen"]
[Black "theblitzchamp"]
[Result "0-1"]
[WhiteElo "2573"]
[BlackElo "2739"]
[TimeControl "180+1"]
[EndTime "11:20:21 PDT"]
[Termination "theblitzchamp won by resignation"]

1. e4 {[%clk 0:03:00.8]} 1... d6 {[%clk 0:02:59.8]} 2. d4 {[%clk 0:03:01.2]}
2... Nf6 {[%clk 0:03:00]} 3. Nc3 {[%clk 0:03:01.8]} 3... g6 {[%clk 0:03:00.6]}
4. Bg5 {[%clk 0:03:02]} 4... Bg7 {[%clk 0:02:57.1]} 5. Qd2 {[%clk 0:03:02.3]}
5... h6 {[%clk 0:02:57.7]} 6. Bh4 {[%clk 0:03:02.6]} 6... g5 {[%clk 0:02:58.3]}
7. Bg3 {[%clk 0:03:03]} 7... Nh5 {[%clk 0:02:59]} 8. O-O-O {[%clk 0:03:03.2]}
8... a6 {[%clk 0:02:43.3]} 9. Nf3 {[%clk 0:03:02.6]} 9... Nc6 {[%clk 0:02:37.6]}
10. d5 {[%clk 0:02:57.1]} 10... Nxg3 {[%clk 0:02:24.6]} 11. hxg3 {[%clk
0:02:56.5]} 11... Ne5 {[%clk 0:02:19.5]} 12. Nd4 {[%clk 0:02:55.9]} 12... c5
{[%clk 0:02:15.2]} 13. dxc6 {[%clk 0:02:47]} 13... Nxc6 {[%clk 0:02:14.1]} 14.
Nf5 {[%clk 0:02:43.7]} 14... Bxf5 {[%clk 0:02:13.9]} 15. exf5 {[%clk 0:02:44.6]}
15... Qa5 {[%clk 0:02:10.1]} 16. Bc4 {[%clk 0:02:40.2]} 16... Bxc3 {[%clk
0:01:22.3]} 17. bxc3 {[%clk 0:02:41.1]} 17... Ne5 {[%clk 0:01:18.1]} 18. Bb3
{[%clk 0:02:33]} 18... Rc8 {[%clk 0:01:09.9]} 19. f4 {[%clk 0:02:29.3]} 19...
Nc4 {[%clk 0:01:07.6]} 20. Bxc4 {[%clk 0:02:26.5]} 20... Rxc4 {[%clk 0:01:08.5]}
21. fxg5 {[%clk 0:02:21.9]} 21... Qa3+ {[%clk 0:00:57.3]} 22. Kb1 {[%clk
0:02:22.2]} 22... Ra4 {[%clk 0:00:55.5]} 23. Qd5 {[%clk 0:02:21.9]} 23... Ra5
{[%clk 0:00:54.8]} 24. Qxb7 {[%clk 0:00:37.7]} 24... Rb5+ {[%clk 0:00:53.1]} 25.
Qxb5+ {[%clk 0:00:37.7]} 25... axb5 {[%clk 0:00:54]} 26. Rxh6 {[%clk 0:00:36.9]}
26... Rg8 {[%clk 0:00:46.1]} 27. g6 {[%clk 0:00:28.8]} 27... fxg6 {[%clk
0:00:45.6]} 28. fxg6 {[%clk 0:00:29.7]} 28... Qxc3 {[%clk 0:00:45]} 29. Rdh1
{[%clk 0:00:26]} 29... Kd7 {[%clk 0:00:36.2]} 30. R1h4 {[%clk 0:00:19.1]} 30...
Qxg3 {[%clk 0:00:33.4]} 31. Re4 {[%clk 0:00:15.5]} 31... Qxg2 {[%clk 0:00:30.7]}
32. Re1 {[%clk 0:00:13.6]} 32... Rxg6 {[%clk 0:00:26.4]} 33. Rh7 {[%clk
0:00:13.8]} 33... Rg7 {[%clk 0:00:25.2]} 34. Rhh1 {[%clk 0:00:12.8]} 34... Qd5
{[%clk 0:00:24.1]} 35. Kb2 {[%clk 0:00:13.7]} 35... Qc4 {[%clk 0:00:24.1]} 36.
Re3 {[%clk 0:00:13.9]} 36... Rg2 {[%clk 0:00:23]} 37. Rc3 {[%clk 0:00:13.9]}
37... Qd4 {[%clk 0:00:21.1]} 38. Kb3 {[%clk 0:00:11.5]} 38... b4 {[%clk
0:00:21]} 39. Rd3 {[%clk 0:00:11.9]} 39... Qc5 {[%clk 0:00:21]} 40. Rc1 {[%clk
0:00:11.9]} 40... d5 {[%clk 0:00:21.3]} 41. Kb2 {[%clk 0:00:12.3]} 41... Qc4
{[%clk 0:00:21.4]} 42. Rb3 {[%clk 0:00:12.6]} 42... e5 {[%clk 0:00:21.4]} 43.
Kb1 {[%clk 0:00:13.1]} 43... e4 {[%clk 0:00:21.6]} 44. Rb2 {[%clk 0:00:12.8]}
44... e3 {[%clk 0:00:20.1]} 45. Rb3 {[%clk 0:00:13.1]} 45... e2 {[%clk
0:00:19.6]} 46. Rd3 {[%clk 0:00:13.6]} 46... Rf2 {[%clk 0:00:19.4]} 47. Kb2
{[%clk 0:00:05.9]} 47... e1=Q {[%clk 0:00:18.8]} 48. Rxd5+ {[%clk 0:00:04.5]}
48... Qxd5 {[%clk 0:00:18.8]} 49. Rxe1 {[%clk 0:00:05.1]} 49... Qd4+ {[%clk
0:00:19.4]} 50. Kb1 {[%clk 0:00:04.8]} 50... Qd2 {[%clk 0:00:19.3]} 51. Rc1
{[%clk 0:00:04.9]} 51... Re2 {[%clk 0:00:19.8]} 52. Kb2 {[%clk 0:00:05.4]} 52...
Kc6 {[%clk 0:00:20.3]} 53. Kb1 {[%clk 0:00:06]} 53... Kb5 {[%clk 0:00:20.8]} 54.
Kb2 {[%clk 0:00:06.3]} 54... Ka4 {[%clk 0:00:21.3]} 55. Kb1 {[%clk 0:00:03.3]}
55... Ka3 {[%clk 0:00:21.3]} 0-1

[Event "*** SCC Grand Prix: Titled Tuesday Blitz"]
[Site "Chess.com"]
[Date "2020.07.07"]
[Round "7"]
[White "blitzking1729"]
[Black "Chessdemon2019"]
[Result "1-0"]
[WhiteElo "2538"]
[BlackElo "2278"]
[TimeControl "180+1"]
[EndTime "11:20:21 PDT"]
[Termination "blitzking1729 won by resignation"]

1. b3 {[%clk 0:02:59.3]} 1... d5 {[%clk 0:02:59.3]} 2. Bb2 {[%clk 0:02:59]} 2...
Bg4 {[%clk 0:02:59.9]} 3. Nf3 {[%clk 0:02:58.1]} 3... Bxf3 {[%clk 0:02:59.2]} 4.
exf3 {[%clk 0:02:57.4]} 4... e6 {[%clk 0:02:59]} 5. d4 {[%clk 0:02:57.2]} 5...
Nf6 {[%clk 0:02:58.8]} 6. Nd2 {[%clk 0:02:56.9]} 6... c5 {[%clk 0:02:58.5]} 7.
dxc5 {[%clk 0:02:55.9]} 7... Bxc5 {[%clk 0:02:59.4]} 8. Bd3 {[%clk 0:02:54.2]}
8... O-O {[%clk 0:02:59.4]} 9. O-O {[%clk 0:02:53.9]} 9... Qc7 {[%clk
0:02:55.2]} 10. Re1 {[%clk 0:02:47.5]} 10... Nc6 {[%clk 0:02:51.8]} 11. Rc1
{[%clk 0:02:46.3]} 11... Rad8 {[%clk 0:02:49.1]} 12. Qe2 {[%clk 0:02:45]} 12...
Nh5 {[%clk 0:02:37.6]} 13. Bb5 {[%clk 0:02:27.2]} 13... Nf4 {[%clk 0:02:31.4]}
14. Qf1 {[%clk 0:02:26.1]} 14... a6 {[%clk 0:02:24.6]} 15. Bxc6 {[%clk
0:02:25.2]} 15... Qxc6 {[%clk 0:02:24.9]} 16. Be5 {[%clk 0:02:24.2]} 16... Ng6
{[%clk 0:02:24.5]} 17. Bb2 {[%clk 0:02:13.4]} 17... Qc7 {[%clk 0:02:15.1]} 18.
g3 {[%clk 0:02:09.9]} 18... h5 {[%clk 0:02:06.8]} 19. c4 {[%clk 0:02:05.1]}
19... h4 {[%clk 0:01:43.4]} 20. Kg2 {[%clk 0:02:01]} 20... Bb4 {[%clk
0:01:29.3]} 21. Red1 {[%clk 0:01:50.7]} 21... d4 {[%clk 0:01:16.1]} 22. Ne4
{[%clk 0:01:48.9]} 22... e5 {[%clk 0:01:16.3]} 23. c5 {[%clk 0:01:48.3]} 23...
f5 {[%clk 0:01:10.3]} 24. Qc4+ {[%clk 0:01:46.4]} 24... Kh7 {[%clk 0:01:08.9]}
25. Ng5+ {[%clk 0:01:43.2]} 25... Kh6 {[%clk 0:01:09.3]} 26. Ne6 {[%clk
0:01:39.5]} 26... Qe7 {[%clk 0:01:01.2]} 27. Nxf8 {[%clk 0:01:31.7]} 27... Rxf8
{[%clk 0:00:56.5]} 28. Qxb4 {[%clk 0:01:31.4]} 28... Qg5 {[%clk 0:00:56.7]} 29.
Qd2 {[%clk 0:01:25.5]} 29... Nf4+ {[%clk 0:00:56.7]} 30. Kh1 {[%clk 0:01:24]}
30... Qh5 {[%clk 0:00:49.4]} 31. Rc3 {[%clk 0:00:19.9]} 31... dxc3 {[%clk
0:00:47.4]} 32. Qxc3 {[%clk 0:00:20.1]} 32... hxg3 {[%clk 0:00:38.8]} 33. fxg3
{[%clk 0:00:19.7]} 33... Ne2 {[%clk 0:00:39.2]} 34. Qe3+ {[%clk 0:00:18.2]}
34... Kh7 {[%clk 0:00:21.8]} 35. Qxe2 {[%clk 0:00:17.8]} 35... e4 {[%clk
0:00:22.5]} 36. Rf1 {[%clk 0:00:15.8]} 36... Re8 {[%clk 0:00:20]} 37. Qe3 {[%clk
0:00:15.1]} 37... Qh3 {[%clk 0:00:18.5]} 38. Qf2 {[%clk 0:00:09.3]} 38... e3
{[%clk 0:00:15.8]} 39. Qg2 {[%clk 0:00:09.3]} 39... Qh5 {[%clk 0:00:15.3]} 40.
f4 {[%clk 0:00:09.2]} 40... e2 {[%clk 0:00:15.6]} 41. Re1 {[%clk 0:00:09.2]}
41... Qg4 {[%clk 0:00:16]} 42. Be5 {[%clk 0:00:08.7]} 42... Rd8 {[%clk 0:00:15]}
43. Qxe2 {[%clk 0:00:08.3]} 43... Qh3 {[%clk 0:00:15.3]} 44. Qg2 {[%clk
0:00:07.7]} 44... Qh5 {[%clk 0:00:15.5]} 45. Bd6 {[%clk 0:00:07.3]} 45... b6
{[%clk 0:00:14.5]} 46. b4 {[%clk 0:00:04.3]} 46... bxc5 {[%clk 0:00:14.6]} 47.
bxc5 {[%clk 0:00:05.2]} 47... Qg4 {[%clk 0:00:12.2]} 48. h3 {[%clk 0:00:05]}
48... Qh5 {[%clk 0:00:12.5]} 49. Kh2 {[%clk 0:00:05.4]} 49... a5 {[%clk
0:00:10.6]} 50. Qe2 {[%clk 0:00:05.4]} 50... Qh6 {[%clk 0:00:10.5]} 51. Qe7
{[%clk 0:00:04.9]} 51... Rc8 {[%clk 0:00:09.4]} 52. Qh4 {[%clk 0:00:04.5]} 52...
Qxh4 {[%clk 0:00:09]} 53. gxh4 {[%clk 0:00:05.4]} 53... Ra8 {[%clk 0:00:08.9]}
54. c6 {[%clk 0:00:05.1]} 54... Ra6 {[%clk 0:00:08.4]} 55. Rc1 {[%clk
0:00:04.3]} 55... a4 {[%clk 0:00:07.2]} 56. c7 {[%clk 0:00:04.3]} 56... Rxd6
{[%clk 0:00:07.6]} 57. c8=Q {[%clk 0:00:04.9]} 57... Rd2+ {[%clk 0:00:08.5]} 58.
Kg3 {[%clk 0:00:05.4]} 58... Rd3+ {[%clk 0:00:08.9]} 59. Kf2 {[%clk 0:00:05.9]}
59... Rxh3 {[%clk 0:00:09.3]} 60. Qxf5+ {[%clk 0:00:05.4]} 1-0